fUST/lending_fUST_20251006
["ID","MTS","AMOUNT","RATE_DAILY","PERIOD"]
[389536451,1759704653467,-500.0,0.00016712,2]
[389536452,1759704653477,-500.0,0.00016712,2]
[389536453,1759704653485,-500.0,0.00016712,2]
[389536454,1759704653494,-500.0,0.00016712,2]
[389536455,1759704653503,-500.0,0.00016712,2]
[389536456,1759704653512,-500.0,0.00016712,2]
[389536457,1759704653521,-500.0,0.00016712,2]
[389536458,1759704653530,-500.0,0.00016712,2]
[389536459,1759704653539,-324.88460938,0.00016712,2]
[389536460,1759704653548,-500.0,0.00016712,2]
[389536461,1759704653557,-500.0,0.00016712,2]
[389536462,1759704653566,-500.0,0.00016712,2]
[389536463,1759704653576,-500.0,0.00016712,2]
[389536464,1759704653586,-1453.29,0.00016712,2]
[389536465,1759704653595,-500.0,0.00016712,2]
[389536466,1759704653605,-500.0,0.00016712,2]
[389536467,1759704653614,-500.0,0.00016712,2]
[389536468,1759704653623,-500.0,0.00016712,2]
[389536469,1759704653632,-793.8,0.00016712,2]
[389536470,1759704653641,-500.0,0.00016712,2]
[389536471,1759704653650,-810.29,0.00016712,2]
[389536472,1759704653659,-500.0,0.00016712,2]
[389536473,1759704653668,-500.0,0.00016712,2]
[389536474,1759704653677,-500.0,0.00016712,2]
[389536475,1759704653686,-500.0,0.00016712,2]
[389536476,1759704653694,-500.0,0.00016712,2]
[389536477,1759704653703,-500.0,0.00016712,2]
[389536478,1759704653712,-500.0,0.00016712,2]
[389536479,1759704653721,-500.0,0.00016712,2]
[389536480,1759704653730,-606.49,0.00016712,2]
[389536481,1759704653739,-500.0,0.00016712,2]
[389536482,1759704653748,-500.0,0.00016712,2]
[389536483,1759704653757,-500.0,0.00016712,2]
[389536484,1759704653766,-500.0,0.00016712,2]
[389536485,1759704653776,-500.0,0.00016712,2]
[389536486,1759704653786,-504.74,0.00016712,2]
[389536487,1759704653795,-500.0,0.00016712,2]
[389536488,1759704653805,-447.38289248,0.00016712,2]
[389536489,1759704653814,-500.0,0.00016712,2]
[389536490,1759704653823,-500.0,0.00016712,2]
[389536491,1759704653833,-600.36,0.00016712,2]
[389536492,1759704653842,-500.0,0.00016712,2]
[389536493,1759704653851,-558.58,0.00016712,2]
[389536494,1759704653861,-500.0,0.00016712,2]
[389536495,1759704653870,-500.0,0.00016712,2]
[389536496,1759704653880,-859.48,0.00016712,2]
[389536497,1759704653889,-500.0,0.00016712,2]
[389536498,1759704653899,-500.0,0.00016712,2]
[389536499,1759704653908,-500.0,0.00016712,2]
[389536500,1759704653917,-500.0,0.00016712,2]
[389536501,1759704653926,-500.0,0.00016712,2]
[389536502,1759704653935,-500.0,0.00016712,2]
[389536503,1759704653944,-500.0,0.00016712,2]
[389536504,1759704653953,-500.0,0.00016712,2]
[389536505,1759704653962,-500.0,0.00016712,2]
[389536506,1759704653972,-500.0,0.00016712,2]
[389536507,1759704653981,-500.0,0.00016712,2]
[389536508,1759704653991,-500.0,0.00016712,2]
[389536509,1759704653999,-500.0,0.00016712,2]
[389536510,1759704654008,-500.0,0.00016712,2]
[389536511,1759704654017,-1484.28,0.00016712,2]
[389536512,1759704654026,-500.0,0.00016712,2]
[389536513,1759704654035,-500.0,0.00016712,2]
[389536514,1759704654044,-500.0,0.00016712,2]
[389536515,1759704654053,-500.0,0.00016712,2]
[389536516,1759704654062,-500.0,0.00016712,2]
[389536517,1759704654072,-500.0,0.00016712,2]
[389536518,1759704654081,-500.0,0.00016712,2]
[389536519,1759704654090,-749.08,0.00016712,2]
[389536520,1759704654100,-635.91,0.00016712,2]
[389536521,1759704654109,-500.0,0.00016712,2]
[389536522,1759704654118,-500.0,0.00016712,2]
[389536523,1759704654127,-500.0,0.00016712,2]
[389536524,1759704654137,-500.0,0.00016712,2]
[389536525,1759704654146,-500.0,0.00016712,2]
[389536526,1759704654155,-480.0,0.00016712,2]
[389536527,1759704654164,-500.0,0.00016712,2]
[389536528,1759704654173,-500.0,0.00016712,2]
[389536529,1759704654183,-564.93,0.00016712,2]
[389536530,1759704654191,-500.0,0.00016712,2]
[389536531,1759704654200,-500.0,0.00016712,2]
[389536532,1759704654210,-500.0,0.00016712,2]
[389536533,1759704654219,-1421.23,0.00016712,2]
[389536534,1759704654228,-594.3,0.00016712,2]
[389536535,1759704654238,-5375.47,0.00016712,2]
[389536536,1759704654247,-500.0,0.00016712,2]
[389536537,1759704654256,-10185.24,0.00016712,2]
[389536538,1759704654264,-500.0,0.00016712,2]
[389536539,1759704654273,-500.0,0.00016712,2]
[389536540,1759704654283,-593.13,0.00016712,2]
[389536541,1759704654293,-557.58,0.00016712,2]
[389536542,1759704654440,-500.0,0.00016712,2]
[389536543,1759704654451,-1405.35,0.00016712,2]
[389536544,1759704654460,-500.0,0.00016712,2]
[389536545,1759704654469,-3688.79,0.00016712,2]
[389536546,1759704654479,-2098.57,0.00016712,2]
[389536547,1759704654489,-500.0,0.00016712,2]
[389536548,1759704654498,-500.0,0.00016712,2]
[389536549,1759704654507,-550.25144794,0.00016712,2]
[389536550,1759704654516,-4588.49,0.00016712,2]
[389536551,1759704654526,-8968.85,0.00016712,2]
[389536552,1759704654535,-491.39422875,0.00016712,2]
[389536553,1759704654544,-500.0,0.00016712,2]
[389536554,1759704654554,-500.0,0.00016712,2]
[389536555,1759704654563,-500.0,0.00016712,2]
[389536556,1759704654573,-1457.14,0.00016712,2]
[389536557,1759704654582,-500.0,0.00016712,2]
[389536558,1759704654591,-500.0,0.00016712,2]
[389536559,1759704654601,-742.33,0.00016712,2]
[389536560,1759704654610,-500.0,0.00016712,2]
[389536561,1759704654620,-844.19,0.00016712,2]
[389536562,1759704654629,-500.0,0.00016712,2]
[389536563,1759704654639,-597.63,0.00016712,2]
[389536564,1759704654649,-500.0,0.00016712,2]
[389536565,1759704654659,-705.73,0.00016712,2]
[389536566,1759704654668,-13144.64,0.00016712,2]
[389536567,1759704654678,-500.0,0.00016712,2]
[389536568,1759704654687,-3046.09,0.00016712,2]
[389536569,1759704654697,-500.0,0.00016712,2]
[389536570,1759704654706,-500.0,0.00016712,2]
[389536571,1759704654716,-1428.52,0.00016712,2]
[389536572,1759704654726,-500.0,0.00016712,2]
[389536573,1759704654735,-500.0,0.00016712,2]
[389536574,1759704654745,-500.0,0.00016712,2]
[389536575,1759704654754,-500.0,0.00016712,2]
[389536576,1759704654763,-500.0,0.00016712,2]
[389536577,1759704654772,-2379.96,0.00016712,2]
[389536578,1759704654781,-1143.55,0.00016712,2]
[389536579,1759704654791,-590.32,0.00016712,2]
[389536580,1759704654800,-500.0,0.00016712,2]
[389536581,1759704654809,-991.56,0.00016712,2]
[389536582,1759704654818,-500.0,0.00016712,2]
[389536583,1759704654827,-759.89,0.00016712,2]
[389536584,1759704654836,-590.75,0.00016712,2]
[389536585,1759704654845,-500.0,0.00016712,2]
[389536586,1759704654854,-500.0,0.00016712,2]
[389536587,1759704654863,-500.0,0.00016712,2]
[389536588,1759704654873,-1760.83,0.00016712,2]
[389536589,1759704654882,-1358.86,0.00016712,2]
[389536590,1759704654892,-614.51,0.00016712,2]
[389536591,1759704654901,-500.0,0.00016712,2]
[389536592,1759704654910,-500.0,0.00016712,2]
[389536593,1759704654919,-500.0,0.00016712,2]
[389536594,1759704654928,-805.6,0.00016712,2]
[389536595,1759704654941,-500.0,0.00016712,2]
[389536596,1759704654950,-4228.24,0.00016712,2]
[389536597,1759704654959,-500.0,0.00016712,2]
[389536598,1759704654968,-500.0,0.00016712,2]
[389536599,1759704654980,-500.0,0.00016712,2]
[389536600,1759704654989,-500.0,0.00016712,2]
[389536601,1759704654998,-603.18,0.00016712,2]
[389536602,1759704655007,-500.0,0.00016712,2]
[389536603,1759704655016,-886.02,0.00016712,2]
[389536604,1759704655027,-1149.13,0.00016712,2]
[389536605,1759704655037,-844.47,0.00016712,2]
[389536606,1759704655046,-500.0,0.00016712,2]
[389536607,1759704655055,-876.04,0.00016712,2]
[389536608,1759704655066,-560.04,0.00016712,2]
[389536609,1759704655075,-1902.18,0.00016712,2]
[389536610,1759704655084,-966.02,0.00016712,2]
[389536611,1759704655094,-4038.0,0.00016712,2]
[389536612,1759704655103,-500.0,0.00016712,2]
[389536613,1759704655112,-1709.59,0.00016712,2]
[389536614,1759704655122,-500.0,0.00016712,2]
[389536615,1759704655131,-500.0,0.00016712,2]
[389536616,1759704655140,-500.0,0.00016712,2]
[389536617,1759704655149,-500.0,0.00016712,2]
[389536618,1759704655158,-500.0,0.00016712,2]
[389536619,1759704655167,-500.0,0.00016712,2]
[389536620,1759704655176,-500.0,0.00016712,2]
[389536621,1759704655185,-500.0,0.00016712,2]
[389536622,1759704655194,-500.0,0.00016712,2]
[389536623,1759704655203,-500.0,0.00016712,2]
[389536624,1759704655213,-500.0,0.00016712,2]
[389536625,1759704655223,-2551.5,0.00016712,2]
[389536626,1759704655233,-500.0,0.00016712,2]
[389536627,1759704655242,-520.76,0.00016712,2]
[389536628,1759704655251,-500.0,0.00016712,2]
[389536629,1759704655260,-8481.96,0.00016712,2]
[389536630,1759704655270,-500.0,0.00016712,2]
[389536631,1759704655281,-1500.0,0.00016712,2]
[389536632,1759704655290,-892.26,0.00016712,2]
[389536633,1759704655299,-284.7633616,0.00016712,2]
[389536634,1759704655308,-1102.61,0.00016712,2]
[389536635,1759704655318,-500.0,0.00016712,2]
[389536636,1759704655327,-500.0,0.00016712,2]
[389536637,1759704655336,-500.0,0.00016712,2]
[389536638,1759704655345,-500.0,0.00016712,2]
[389536639,1759704655354,-500.0,0.00016712,2]
[389536640,1759704655363,-500.0,0.00016712,2]
[389536641,1759704655372,-500.0,0.00016712,2]
[389536642,1759704655380,-500.0,0.00016712,2]
[389536643,1759704655389,-500.0,0.00016712,2]
[389536644,1759704655398,-500.0,0.00016712,2]
[389536645,1759704655407,-1144.19,0.00016712,2]
[389536646,1759704655418,-902.28,0.00016712,2]
[389536647,1759704655427,-500.0,0.00016712,2]
[389536648,1759704655437,-200.32,0.00016712,2]
[389536649,1759704655446,-500.0,0.00016712,2]
[389536650,1759704655455,-264.9,0.00016739,2]
[389536651,1759704655466,-300.0,0.00016765,2]
[389536652,1759704655475,-300.0,0.00016765,2]
[389536653,1759704655483,-300.0,0.00016765,2]
[389536654,1759704655493,-300.0,0.00016765,2]
[389536655,1759704655502,-300.0,0.00016765,2]
[389536656,1759704655511,-300.0,0.00016765,2]
[389536657,1759704655520,-300.0,0.00016765,2]
[389536658,1759704655529,-300.0,0.00016765,2]
[389536659,1759704655538,-300.0,0.00016765,2]
[389536660,1759704655547,-300.0,0.00016765,2]
[389536661,1759704655556,-300.0,0.00016765,2]
[389536662,1759704655565,-300.0,0.00016765,2]
[389536663,1759704655574,-300.0,0.00016765,2]
[389536664,1759704655583,-300.0,0.00016765,2]
[389536665,1759704655592,-300.0,0.00016765,2]
[389536666,1759704655601,-600.0,0.00016765,2]
[389536667,1759704655610,-200.32,0.00016812,2]
[389536668,1759704655619,-313.0,0.00016861,2]
[389536669,1759704655628,-12357.06857415,0.00016886,2]
[389536670,1759704655637,-500.0,0.00016886,2]
[389536671,1759704655646,-5640.96097369,0.0001693,2]
[389536672,1759704655656,-500.0,0.00016973,2]
[389536673,1759704655665,-151.0,0.00016976,2]
[389536674,1759704655675,-151.0,0.00016976,2]
[389536675,1759704655684,-151.0,0.00016976,2]
[389536676,1759704655694,-151.0,0.00016976,2]
[389536677,1759704655703,-151.0,0.00016976,2]
[389536678,1759704655713,-500.0,0.00016976,2]
[389536679,1759704655723,-198.13239105,0.00016976,2]
[389536680,1759704655732,-168.3888056,0.00016976,2]
[389536681,1759704655741,-19292.2273969,0.00016976,2]
[389536682,1759704655750,-885.82,0.00016985,2]
[389536683,1759704655760,-885.82,0.00016985,2]
[389536684,1759704655771,-885.82,0.00016985,2]
[389536685,1759704655781,-885.82,0.00016985,2]
[389536686,1759704655790,-885.82,0.00016985,2]
[389536687,1759704655799,-886.05500331,0.00016985,2]
[389536688,1759704655808,-4043.44,0.00016985,2]
[389536689,1759704655818,-4043.44,0.00016985,2]
[389536690,1759704655827,-4043.44,0.00016985,2]
[389536691,1759704655837,-4043.44,0.00016985,2]
[389536692,1759704655847,-4043.44,0.00016985,2]
[389536693,1759704655857,-4043.4766397,0.00016985,2]
[389536694,1759704655868,-198.0,0.00016986,2]
[389536695,1759704655877,-500.0,0.00016986,2]
[389536696,1759704655886,-151.0,0.00016986,2]
[389536697,1759704655897,-259.96695593,0.00016986,2]
[389536698,1759704655906,-151.0,0.00016986,2]
[389536699,1759704655916,-198.0,0.00016986,2]
[389536700,1759704655928,-198.0,0.00016986,2]
[389536701,1759704655941,-537.66048517,0.00016986,2]
[389536702,1759704655950,-1399.0,0.00016986,2]
[389536703,1759704655959,-315.7293526,0.00016986,2]
[389536704,1759704655967,-539.93422252,0.00016986,2]
[389536705,1759704655976,-220.77,0.00016986,2]
[389536706,1759704655985,-500.0,0.00016986,2]
[389536707,1759704655995,-500.0,0.00016986,2]
[389536708,1759704656004,-625.71,0.00016986,2]
[389536709,1759704656013,-500.0,0.00016986,2]
[389536710,1759704656026,-500.0,0.00016986,2]
[389536711,1759704656035,-500.0,0.00016986,2]
[389536712,1759704656044,-531.85,0.00016986,2]
[389536713,1759704656054,-567.24,0.00016986,2]
[389536714,1759704656063,-500.0,0.00016986,2]
[389536715,1759704656073,-500.0,0.00016986,2]
[389536716,1759704656083,-500.0,0.00016986,2]
[389536717,1759704656092,-327.38402587,0.00016986,2]
[389536718,1759704656103,-500.0,0.00016986,2]
[389536719,1759704656112,-500.0,0.00016986,2]
[389536720,1759704656122,-500.0,0.00016986,2]
[389536721,1759704656131,-500.0,0.00016986,2]
[389536722,1759704656141,-500.0,0.00016986,2]
[389536723,1759704656149,-500.0,0.00016986,2]
[389536724,1759704656158,-500.0,0.00016986,2]
[389536725,1759704656167,-500.0,0.00016986,2]
[389536726,1759704656176,-553.27703503,0.00016986,2]
[389536727,1759704656185,-500.0,0.00016986,2]
[389536728,1759704656194,-500.0,0.00016986,2]
[389536729,1759704656202,-1649.29,0.00016986,2]
[389536730,1759704656211,-500.0,0.00016986,2]
[389536731,1759704656220,-500.0,0.00016986,2]
[389536732,1759704656229,-500.0,0.00016986,2]
[389536733,1759704656238,-886.78,0.00016986,2]
[389536734,1759704656247,-500.0,0.00016986,2]
[389536735,1759704656256,-500.0,0.00016986,2]
[389536736,1759704656265,-500.0,0.00016986,2]
[389536737,1759704656274,-500.0,0.00016986,2]
[389536738,1759704656283,-500.0,0.00016986,2]
[389536739,1759704656292,-500.0,0.00016986,2]
[389536740,1759704656301,-500.0,0.00016986,2]
[389536741,1759704656310,-500.0,0.00016986,2]
[389536742,1759704656319,-500.0,0.00016986,2]
[389536743,1759704656328,-500.0,0.00016986,2]
[389536744,1759704656337,-1453.29,0.00016986,2]
[389536745,1759704656346,-500.0,0.00016986,2]
[389536746,1759704656355,-500.0,0.00016986,2]
[389536747,1759704656364,-793.8,0.00016986,2]
[389536748,1759704656373,-810.29,0.00016986,2]
[389536749,1759704656382,-500.0,0.00016986,2]
[389536750,1759704656391,-500.0,0.00016986,2]
[389536751,1759704656400,-500.0,0.00016986,2]
[389536752,1759704656409,-500.0,0.00016986,2]
[389536753,1759704656417,-500.0,0.00016986,2]
[389536754,1759704656426,-500.0,0.00016986,2]
[389536755,1759704656435,-500.0,0.00016986,2]
[389536756,1759704656444,-606.49,0.00016986,2]
[389536757,1759704656453,-500.0,0.00016986,2]
[389536758,1759704656462,-500.0,0.00016986,2]
[389536759,1759704656471,-504.74,0.00016986,2]
[389536760,1759704656481,-500.0,0.00016986,2]
[389536761,1759704656491,-500.0,0.00016986,2]
[389536762,1759704656502,-500.0,0.00016986,2]
[389536763,1759704656512,-600.36,0.00016986,2]
[389536764,1759704656523,-558.58,0.00016986,2]
[389536765,1759704656534,-500.0,0.00016986,2]
[389536766,1759704656543,-859.48,0.00016986,2]
[389536767,1759704656553,-500.0,0.00016986,2]
[389536768,1759704656561,-500.0,0.00016986,2]
[389536769,1759704656570,-500.0,0.00016986,2]
[389536770,1759704656579,-500.0,0.00016986,2]
[389536771,1759704656588,-500.0,0.00016986,2]
[389536772,1759704656597,-500.0,0.00016986,2]
[389536773,1759704656607,-500.0,0.00016986,2]
[389536774,1759704656616,-500.0,0.00016986,2]
[389536775,1759704656626,-284.97416766,0.00016986,2]
[389536776,1759704656635,-500.0,0.00016986,2]
[389536777,1759704656644,-1484.28,0.00016986,2]
[389536778,1759704656653,-500.0,0.00016986,2]
[389536779,1759704656662,-500.0,0.00016986,2]
[389536780,1759704656671,-500.0,0.00016986,2]
[389536781,1759704656680,-500.0,0.00016986,2]
[389536782,1759704656689,-749.08,0.00016986,2]
[389536783,1759704656698,-635.91,0.00016986,2]
[389536784,1759704656707,-500.0,0.00016986,2]
[389536785,1759704656716,-500.0,0.00016986,2]
[389536786,1759704656726,-500.0,0.00016986,2]
[389536787,1759704656735,-500.0,0.00016986,2]
[389536788,1759704656744,-500.0,0.00016986,2]
[389536789,1759704656753,-193.54318782,0.00016986,2]
[389536790,1759704656762,-564.93,0.00016986,2]
[389536791,1759704656771,-500.0,0.00016986,2]
[389536792,1759704656780,-500.0,0.00016986,2]
[389536793,1759704656789,-1421.23,0.00016986,2]
[389536794,1759704656799,-594.3,0.00016986,2]
[389536795,1759704656808,-5375.47,0.00016986,2]
[389536796,1759704656817,-500.0,0.00016986,2]
[389536797,1759704656826,-10185.24,0.00016986,2]
[389536798,1759704656835,-500.0,0.00016986,2]
[389536799,1759704656844,-593.13,0.00016986,2]
[389536800,1759704656853,-557.58,0.00016986,2]
[389536801,1759704656862,-288.66623334,0.00016986,2]
[389536802,1759704656871,-1405.35,0.00016986,2]
[389536803,1759704656880,-500.0,0.00016986,2]
[389536804,1759704656889,-3688.79,0.00016986,2]
[389536805,1759704656898,-2098.57,0.00016986,2]
[389536806,1759704656907,-500.0,0.00016986,2]
[389536807,1759704656916,-500.0,0.00016986,2]
[389536808,1759704656925,-4588.49,0.00016986,2]
[389536809,1759704656935,-8968.85,0.00016986,2]
[389536810,1759704656945,-500.0,0.00016986,2]
[389536811,1759704656954,-500.0,0.00016986,2]
[389536812,1759704656963,-500.0,0.00016986,2]
[389536813,1759704656972,-1457.14,0.00016986,2]
[389536814,1759704656982,-742.33,0.00016986,2]
[389536815,1759704656991,-500.0,0.00016986,2]
[389536816,1759704657000,-844.19,0.00016986,2]
[389536817,1759704657010,-295.42865613,0.00016986,2]
[389536818,1759704657023,-597.63,0.00016986,2]
[389536819,1759704657031,-500.0,0.00016986,2]
[389536820,1759704657040,-705.73,0.00016986,2]
[389536821,1759704657049,-13144.64,0.00016986,2]
[389536822,1759704657058,-500.0,0.00016986,2]
[389536823,1759704657067,-3046.09,0.00016986,2]
[389536824,1759704657075,-1428.52,0.00016986,2]
[389536825,1759704657084,-500.0,0.00016986,2]
[389536826,1759704657093,-500.0,0.00016986,2]
[389536827,1759704657102,-500.0,0.00016986,2]
[389536828,1759704657114,-500.0,0.00016986,2]
[389536829,1759704657125,-500.0,0.00016986,2]
[389536830,1759704657134,-2379.96,0.00016986,2]
[389536831,1759704657143,-1143.55,0.00016986,2]
[389536832,1759704657151,-590.32,0.00016986,2]
[389536833,1759704657160,-991.56,0.00016986,2]
[389536834,1759704657169,-500.0,0.00016986,2]
[389536835,1759704657178,-759.89,0.00016986,2]
[389536836,1759704657187,-590.75,0.00016986,2]
[389536837,1759704657196,-500.0,0.00016986,2]
[389536838,1759704657205,-500.0,0.00016986,2]
[389536839,1759704657214,-500.0,0.00016986,2]
[389536840,1759704657223,-1760.83,0.00016986,2]
[389536841,1759704657232,-1358.86,0.00016986,2]
[389536842,1759704657241,-614.51,0.00016986,2]
[389536843,1759704657250,-500.0,0.00016986,2]
[389536844,1759704657377,-500.0,0.00016986,2]
[389536845,1759704657401,-805.6,0.00016986,2]
[389536846,1759704657410,-500.0,0.00016986,2]
[389536847,1759704657420,-4228.24,0.00016986,2]
[389536848,1759704657429,-500.0,0.00016986,2]
[389536849,1759704657437,-500.0,0.00016986,2]
[389536850,1759704657446,-500.0,0.00016986,2]
[389536851,1759704657456,-500.0,0.00016986,2]
[389536852,1759704657465,-603.18,0.00016986,2]
[389536853,1759704657474,-886.02,0.00016986,2]
[389536854,1759704657483,-1149.13,0.00016986,2]
[389536855,1759704657492,-844.47,0.00016986,2]
[389536856,1759704657501,-500.0,0.00016986,2]
[389536857,1759704657510,-876.04,0.00016986,2]
[389536858,1759704657519,-560.04,0.00016986,2]
[389536859,1759704657528,-1902.18,0.00016986,2]
[389536860,1759704657538,-966.02,0.00016986,2]
[389536861,1759704657547,-4038.0,0.00016986,2]
[389536862,1759704657556,-500.0,0.00016986,2]
[389536863,1759704657565,-1709.59,0.00016986,2]
[389536864,1759704657574,-500.0,0.00016986,2]
[389536865,1759704657583,-500.0,0.00016986,2]
[389536866,1759704657592,-500.0,0.00016986,2]
[389536867,1759704657601,-500.0,0.00016986,2]
[389536868,1759704657610,-500.0,0.00016986,2]
[389536869,1759704657619,-500.0,0.00016986,2]
[389536870,1759704657628,-500.0,0.00016986,2]
[389536871,1759704657637,-500.0,0.00016986,2]
[389536872,1759704657646,-287.70733921,0.00016986,2]
[389536873,1759704657655,-500.0,0.00016986,2]
[389536874,1759704657664,-500.0,0.00016986,2]
[389536875,1759704657673,-2551.5,0.00016986,2]
[389536876,1759704657682,-500.0,0.00016986,2]
[389536877,1759704657692,-520.76,0.00016986,2]
[389536878,1759704657701,-500.0,0.00016986,2]
[389536879,1759704657711,-8481.96,0.00016986,2]
[389536880,1759704657720,-500.0,0.00016986,2]
[389536881,1759704657729,-1500.0,0.00016986,2]
[389536882,1759704657739,-892.26,0.00016986,2]
[389536883,1759704657748,-1102.61,0.00016986,2]
[389536884,1759704657757,-500.0,0.00016986,2]
[389536885,1759704657766,-500.0,0.00016986,2]
[389536886,1759704657774,-500.0,0.00016986,2]
[389536887,1759704657783,-500.0,0.00016986,2]
[389536888,1759704657793,-500.0,0.00016986,2]
[389536889,1759704657802,-500.0,0.00016986,2]
[389536890,1759704657811,-500.0,0.00016986,2]
[389536891,1759704657820,-1144.19,0.00016986,2]
[389536892,1759704657829,-902.28,0.00016986,2]
[389536893,1759704657839,-500.0,0.00016986,2]
[389536894,1759704657848,-500.0,0.00016986,2]
[389536895,1759704657858,-543.09602212,0.0001699,2]
[389536896,1759704657867,-110027.93956836,0.00017,2]
[389536897,1759704657876,-348.0,0.00017,2]
[389536898,1759704657885,-1000.0,0.00017021,2]
[389536899,1759704657895,-1000.0,0.00017021,2]
[389536900,1759704657904,-1000.0,0.00017021,2]
[389536901,1759704657913,-1000.0,0.00017021,2]
[389536902,1759704657922,-1007.16512979,0.00017021,2]
[389536903,1759704657932,-500.0,0.00017021,2]
[389536904,1759704657944,-1000.0,0.00017021,2]
[389536905,1759704657954,-500.0,0.00017021,2]
[389536906,1759704657964,-1000.0,0.00017021,2]
[389536907,1759704657974,-500.0,0.00017021,2]
[389536908,1759704657983,-500.0,0.00017021,2]
[389536909,1759704657992,-1000.0,0.00017021,2]
[389536910,1759704658001,-1000.0,0.00017021,2]
[389536911,1759704658011,-500.0,0.00017021,2]
[389536912,1759704658020,-1000.0,0.00017021,2]
[389536913,1759704658029,-940.29413678,0.00017021,2]
[389536914,1759704658039,-1000.0,0.00017021,2]
[389536915,1759704658047,-500.0,0.00017021,2]
[389536916,1759704658056,-1000.0,0.00017021,2]
[389536917,1759704658065,-1000.0,0.00017021,2]
[389536918,1759704658074,-406.06007539,0.00017021,2]
[389536919,1759704658083,-500.0,0.00017021,2]
[389536920,1759704658092,-501.97120374,0.00017021,2]
[389536921,1759704658102,-1000.0,0.00017021,2]
[389536922,1759704658111,-1000.0,0.00017021,2]
[389536923,1759704658120,-1000.0,0.00017021,2]
[389536924,1759704658129,-1000.0,0.00017021,2]
[389536925,1759704658138,-1000.0,0.00017021,2]
[389536926,1759704658148,-1000.0,0.00017021,2]
[389536927,1759704658157,-357.0,0.00017045,2]
[389536928,1759704658166,-500.0,0.00017052,2]
[389536929,1759704658175,-500.0,0.00017052,2]
[389536930,1759704658184,-500.0,0.00017052,2]
[389536931,1759704658193,-500.0,0.00017052,2]
[389536932,1759704658202,-165.11033691,0.00017052,2]
[389536933,1759704658211,-306.0,0.00017153,2]
[389536934,1759704658220,-153.0,0.00017153,2]
[389536935,1759704658230,-500.0,0.0001716,2]
[389536936,1759704658239,-5640.96097369,0.0001716,2]
[389536937,1759704658248,-203.0,0.00017181,2]
[389536938,1759704658258,-1869.28133295,0.00017183,2]
[389536939,1759704658267,-500.0,0.000172,2]
[389536940,1759704658276,-203.0,0.00017218,2]
[389536941,1759704658285,-189.5044535,0.00017241,2]
[389536942,1759704658295,-198.0,0.0001725,2]
[389536943,1759704658304,-198.0,0.0001725,2]
[389536944,1759704658313,-259.87939068,0.0001725,2]
[389536945,1759704658322,-500.0,0.0001725,2]
[389536946,1759704658331,-351.72597296,0.0001726,2]
[389536947,1759704658340,-151.0,0.0001726,2]
[389536948,1759704658349,-151.0,0.0001726,2]
[389536949,1759704658358,-1399.0,0.0001726,2]
[389536950,1759704658367,-500.0,0.0001726,2]